[Event "ESP-ch Teams Honor 2024"]
[Site "Melilla"]
[Date "2024.10.14"]
[Round "3.4"]
[White "Del Rio De Angelis, Salvador G."]
[Black "Oro, Faustino"]
[Result "1/2-1/2"]
[ECO "E48"]
[WhiteElo "2387"]
[BlackElo "2434"]
[Annotator "TA"]
[PlyCount "152"]
[EventDate "2024.10.11"]
[EventType "team-tourn"]
[EventCountry "ESP"]
[SourceTitle "playchess.com"]
[Source "ChessBase"]
[SourceQuality "1"]
[WhiteTeam "SESTAO HOTEL NAVAL"]
[BlackTeam "Extremadura"]
[TimeControl "5400+30"]

{[%evp 14,152,-8,-11,0,-25,-17,-11,-12,-38,-16,-20,0,-16,20,5,4,-5,-6,-35,-46,-32,-39,-39,0,0,0,-40,-43,-71,-18,-18,0,-23,29,0,0,-19,0,-13,-19,-15,80,51,75,0,0,-13,-7,0,0,-13,0,0,0,-13,-13,-13,-20,-107,-38,-54,-51,-78,-50,-137,-128,-125,-115,-116,-131,-123,-114,-145,-93,-153,-83,-93,-104,-109,-38,-86,-73,-100,-78,-126,-123,-236,-225,-386,-77,-535,-80,-105,-134,-100,0,-623,-3,-3,-13,-13,-13,-3,-3,-235,-235,-249,-237,-226,-213,-220,-106,-106,-116,-125,-73,-84,-31,-30,-31,-33,-13,-13,-13,-13,-13,-13,-13,-13,-13,-13,-13,-13,-13,-13,-13,-13,-13,-13,-13]} 1. d4 {[%emt 0:00:26]} Nf6 {[%emt 0:00:04]} 2. c4 {[%emt 0:00:19]} e6 {[%emt 0:00:06]} 3. Nc3 {[%emt 0:00:17]} Bb4 {[%emt 0:00:05]} 4. e3 {[%emt 0:00:15]} O-O {[%emt 0:00:06]} 5. Bd3 {[%emt 0:00:21]} d5 {[%emt 0:00:06]} 6. cxd5 {[%emt 0:00:18]} exd5 {[%emt 0:00:10]} 7. a3 {[%emt 0:00:17]} Bd6 {[%emt 0:00:13]} 8. Nge2 {[%emt 0:00:27]} Re8 {[%emt 0:00:32] E48: Nimzo-Indisch: Rubinstein: 5 Ld3 d5 inclusief 6 Pe2, maar exclusief 6 a3.} 9. O-O {[%emt 0:00:15] OK} c6 {[%emt 0:05:01]} 10. Ng3 {[%emt 0:00:19] OK} Nbd7 {[%emt 0:00:51]} 11. f3 {[%emt 0:00:34] Onnauwkeurig} c5 $146 {[%emt 0:01:42]} ({Predecessor:} 11... Qc7 12. e4 Bxg3 13. hxg3 Qxg3 14. e5 Nh5 15. f4 Qh4 16. Be3 Ng3 17. Rf3 Nf8 {1-0 Hansen,E (2609)-Przybylski,W (2321) Titled Tuesday intern op 08th Nov Late blitz 2022 (8)}) 12. Qd2 {[%emt 0:00:16] OK} a6 {[%emt 0:04:48]} 13. Qf2 {[%emt 0:00:15] OK} Nf8 {[%emt 0:03:39] Onnauwkeurig} 14. Bd2 {[%emt 0:04:46] OK} Ng6 {[%emt 0:02:57]} 15. Nce2 {[%emt 0:01:19]} Bd7 {[%emt 0:08:00] OK} 16. Kh1 {[%emt 0:02:34] Onnauwkeurig} cxd4 {[%emt 0:08:16]} 17. exd4 {[%emt 0:01:21]} h6 {[%emt 0:04:26]} 18. Nf5 {[%emt 0:08:48] OK} Bb8 {[%emt 0:02:59]} 19. g3 {[%emt 0:26:23] OK} Qb6 {[%emt 0:04:23] OK} 20. Nc3 {[%emt 0:00:41] OK} Ba7 {[%emt 0:20:35][%cal Od7f5]} (20... Qxb2 $2 {vergaat.} 21. Rfb1 $18) 21. Be3 {[%emt 0:01:35] OK} Bxf5 {[%emt 0:07:55] Fout (0.5)} (21... Ne7 $17 22. Nxe7+ Rxe7) 22. Bxf5 $11 {[%emt 0:00:08]} Ne7 {[%emt 0:00:07] OK} 23. Bd3 {[%emt 0:08:35]} Qe6 {[%emt 0:03:27] Fout (0.5)} (23... Nc6) 24. Rfe1 {[%emt 0:03:59][%cal Oe3h6] Onnauwkeurig} Qd7 {[%emt 0:00:40]} 25. g4 {[%emt 0:01:10]} Nc6 {[%emt 0:00:16] OK} 26. Ne2 {[%emt 0:05:02] OK} Nh7 {[%emt 0:06:43]} 27. Ng3 {[%emt 0:02:38]} Ne7 {[%emt 0:02:41] Houdt de partij in balans. Fout (1.0)} (27... g6 $11) 28. Qd2 {[%emt 0:01:33][%cal Re3h6] Sterke dreiging met Bxh6! Wit is actiever. Onnauwkeurig} Ng5 {[%emt 0:04:06]} 29. Bxg5 {[%emt 0:02:20] Fout (0.9)} (29. Qf2 $16) 29... hxg5 {[%emt 0:00:20]} 30. Qxg5 {[%emt 0:01:15]} Bxd4 {[%emt 0:00:16] OK} 31. Re2 {[%emt 0:00:43] OK} Bf6 {[%emt 0:01:31] OK} 32. Qd2 {[%emt 0:01:24] OK} Nc6 {[%emt 0:01:44] OK} 33. g5 {[%emt 0:02:12] OK} Rxe2 {[%emt 0:00:26] OK} 34. Nxe2 {[%emt 0:00:14]} Be5 {[%emt 0:01:54]} 35. f4 {[%emt 0:01:37]} Bc7 {[%emt 0:00:26] OK} 36. Be4 {[%emt 0:05:33] blijft gelijk. Fout (0.9)} Rd8 {[%emt 0:01:20] Fout (0.7)} (36... Re8 $1 $17 {[%cal Re8e4]} 37. Bxd5 Rxe2 38. Bxf7+ Qxf7 39. Qxe2 Bxf4 (39... Qxf4 40. Rf1 $11)) 37. Bg2 {[%emt 0:01:49]} Ne7 {[%emt 0:00:44] OK} 38. Rd1 $1 {[%emt 0:02:04] Sterk} Qe6 {[%emt 0:01:18] Onnauwkeurig} (38... d4 $5 39. Qd3 b5 $15) {Wit zou moeten spelen} 39. Nd4 {[%emt 0:01:11] Fout (0.9)} (39. Rc1 $15 Bb8 40. Nc3) 39... Qg4 $17 {[%emt 0:00:51][%cal Rc7f4] Beste (Gemakkelijk)} 40. Rf1 {[%emt 0:01:08] OK} Ng6 $1 {[%emt 0:00:35][%cal Rg6f4] OK} 41. Qe2 {[%emt 0:05:27]} Qd7 {[%emt 0:00:55] OK} 42. f5 {[%emt 0:01:38] OK} Nf4 {[%emt 0:00:08] OK} 43. Qg4 {[%emt 0:01:22] OK} Nxg2 {[%emt 0:00:16] OK} 44. Qxg2 {[%emt 0:00:07] Fout (0.6)} (44. Kxg2 Rc8 45. Qh4) 44... Be5 {[%emt 0:01:01] Fout (0.7)} (44... Bb6 $1 {[%cal Rb6d4]} 45. Qd2 Re8) 45. Qg4 {[%emt 0:01:13]} Rc8 {[%emt 0:01:29]} 46. b3 {[%emt 0:01:22] Ontwijkt Rc4. OK} {Zwart zou moeten spelen} Rc3 {[%emt 0:02:00] Fout (0.7)} (46... Re8 $17 47. Nf3 Bc3) 47. Nf3 {[%emt 0:00:39] was beter. Fout (0.5)} (47. g6 $15 fxg6 48. Ne6) 47... Re3 {[%emt 0:01:05] OK} 48. g6 {[%emt 0:01:22] OK} Bf6 {[%emt 0:00:41] OK} {Wit zou moeten proberen} 49. gxf7+ {[%emt 0:02:08] Fout (0.5)} (49. Qh5) 49... Qxf7 {[%emt 0:00:11][%cal Of7e8]} 50. Rc1 {[%emt 0:00:15] was nodig. Fout (1.1)} (50. Ng5 $17 Qe8 51. Qh4) 50... Qe8 $19 {[%emt 0:00:48][%cal Od5d4] OK} (50... Rxb3 $2 {te hebberig.} 51. Rc8+ $18) 51. Rc7 $2 {[%emt 0:02:48] gaat door met vechten. Fout (1.6)} (51. b4) 51... d4 $2 {[%emt 0:00:28] en Zwart blijft duidelijk aan de top. Gemiste overwinning (3.1)} (51... Rxb3 $19 {[%cal Ob7b5] Dreigt te winnen met ...b5!} 52. a4 d4) 52. Kg2 $2 {[%emt 0:01:08][%mdl 8192] niets anders werkt. Verliest partij (4.6)} (52. Qg6 $17) 52... d3 $2 {[%emt 0:00:35] Gemiste overwinning (4.5)} (52... Rc3 $19 53. Rxc3 Qe2+ (53... dxc3 $2 54. Qc4+ Kh7 55. b4 $19) 54. Kh3 dxc3) 53. Qc4+ {[%emt 0:00:13]} Kh7 $1 {[%emt 0:00:09] Sterk} 54. Rc8 {[%emt 0:00:08] OK} Re2+ {[%emt 0:00:26] OK} 55. Kf1 $2 {[%emt 0:00:38][%mdl 8192] [#] Verliest partij (6.2)} (55. Kg3 $11 Be5+ 56. Kg4 Rg2+ 57. Kh4 (57. Kh3 Rxh2+ 58. Nxh2 Qh5+ 59. Kg2 Qxh2+ 60. Kf1 Qe2+ 61. Kg1 Bf6 $19)) {Beter is} 55... b5 $2 {[%emt 0:00:57] Gemiste overwinning (6.2)} 56. Qxd3 $11 {[%emt 0:00:08] Beste (Gemakkelijk)} Re3 $40 {[%emt 0:00:19][%mdl 128] Wit moet nauwkeurig verdedigen.} 57. Rxe8 {[%emt 0:00:51] Beste (Gemakkelijk)} Rxd3 {[%emt 0:00:00][%mdl 4096] Eindspel. KRB-KRN. OK} 58. Ke2 {[%emt 0:01:02] OK} Rxb3 {[%emt 0:00:04] OK} 59. Re3 $2 {[%emt 0:00:09] es Wit is oké. Verliest partij (2.3)} (59. h4 $1 $11) 59... Rxe3+ $19 {[%emt 0:00:33] OK} 60. Kxe3 {[%emt 0:00:05] KB-KN} Be7 {[%emt 0:00:02] Beste (Gemakkelijk)} 61. a4 {[%emt 0:01:12] OK} bxa4 {[%emt 0:00:01] Beste (Gemakkelijk)} 62. Kd3 {[%emt 0:00:11] [#] Beste} Kh6 {[%emt 0:00:34] is dodelijker. Fout (1.1)} (62... Kg8 $1 $19 {[%cal Rg8f7] En nu zou ...Kf7 winnen.} 63. Nd2 Kh7) 63. Kc2 $17 {[%emt 0:00:14] OK} Bf6 {[%emt 0:00:55]} 64. Kb1 {[%emt 0:00:12] OK} {Zwart zou moeten proberen} a3 {[%emt 0:00:06] Fout (0.5)} (64... Kh7 65. Nd2 Kh6) 65. Ka2 {[%emt 0:00:06]} {Zwart kan overwegen te spelen.} Bb2 {[%emt 0:00:04] Fout (0.5)} (65... Kh5 $17 {...Kg4 zou dodelijk zijn.} 66. Kxa3 Kg4) 66. Kb3 {[%emt 0:00:54]} Kh7 {[%emt 0:00:20] OK} 67. h3 {[%emt 0:01:07] OK} Kg8 {[%emt 0:00:32]} 68. Nh2 $1 {[%emt 0:00:04] Sterk. De stelling is in evenwicht.} Kf7 {[%emt 0:00:51]} 69. Ng4 {[%emt 0:00:05] Beste (Gemakkelijk)} Ke7 {[%emt 0:00:41]} 70. h4 {[%emt 0:00:05] OK} Bc1 {[%emt 0:00:23]} 71. h5 {[%emt 0:00:08] OK} a5 {[%emt 0:00:50]} 72. Ka2 {[%emt 0:00:08] OK} a4 {[%emt 0:01:46]} 73. h6 {[%emt 0:01:02] OK} gxh6 {[%emt 0:00:26] met als doel voor ...h5. OK} ({Veel slechter is} 73... Bxh6 74. Kxa3 Kf7 75. Kxa4 $14 (75. Nxh6+ $2 gxh6 76. Kxa4 Kf6 $19)) 74. Nxh6 {[%emt 0:00:08]} Bxh6 {[%emt 0:00:13]} 75. Kxa3 {[%emt 0:00:05]} Kf6 {[%emt 0:00:02] OK} 76. Kxa4 {[%emt 0:00:05] OK} Kxf5 {[%emt 0:00:03] Zwart had alle kansen om te winnen.   Blunder waarde: Wit=0.39/Zwart=0.48. OK.  Verliest partij:   	Wit=3      	---        Gemiste overwinning: 	---       	Zwart=3      Fout:        	Wit=8      	Zwart=9      Onnauwkeurig:    	Wit=4      	Zwart=2      OK:         	Wit=29     	Zwart=25     Beste:        	Wit=4      	Zwart=3      Sterk:        	Wit=2      	Zwart=1} 1/2-1/2

[Event "ESP-ch Teams Honor 2024"]
[Site "Melilla"]
[Date "2024.10.14"]
[Round "3.5"]
[White "Shuvalova, Polina"]
[Black "Trigo Urquijo, Sergio"]
[Result "1-0"]
[ECO "B66"]
[WhiteElo "2472"]
[BlackElo "2384"]
[Annotator "TA"]
[PlyCount "53"]
[EventDate "2024.10.11"]
[EventType "team-tourn"]
[EventCountry "ESP"]
[SourceTitle "playchess.com"]
[Source "ChessBase"]
[SourceQuality "1"]
[WhiteTeam "Extremadura"]
[BlackTeam "Sestao"]
[TimeControl "5400+30"]

{[%evp 13,53,13,28,15,18,22,29,45,32,25,56,41,31,16,29,0,0,0,156,156,155,156,150,18,164,169,322,332,473,456,446,456,425,397,631,642,643,642,624,631,662,655]} 1. e4 {[%emt 0:00:05]} c5 {[%emt 0:00:25]} 2. Nf3 {[%emt 0:00:06]} d6 {[%emt 0:00:16]} 3. d4 {[%emt 0:00:34]} cxd4 {[%emt 0:00:17]} 4. Nxd4 {[%emt 0:00:05]} Nf6 {[%emt 0:00:31]} 5. Nc3 {[%emt 0:00:06]} Nc6 {[%emt 0:02:28]} 6. Bg5 {[%emt 0:00:39]} e6 {[%emt 0:00:16]} 7. Qd2 {[%emt 0:02:59]} a6 {[%emt 0:00:36]} 8. Nxc6 {[%emt 0:02:55]} bxc6 {[%emt 0:00:11]} 9. O-O-O {[%emt 0:00:10][%cal Oe4e5] e5! would now be deadly.} Be7 {[%emt 0:07:36]} 10. Bxf6 {[%emt 0:00:31] White has an edge.} gxf6 {[%emt 0:01:37]} 11. Bc4 {[%emt 0:00:13]} Qa5 {[%emt 0:08:51]} 12. Bb3 {[%emt 0:06:30]} (12. f4 $5) 12... Bb7 {[%emt 0:20:01]} 13. Rhe1 {[%emt 0:01:42]} O-O-O {[%emt 0:00:44]} 14. Kb1 {[%emt 0:05:01]} h5 {[%emt 0:03:07]} 15. f4 {[%emt 0:02:18][%cal Bf2f4,Bf4f5,Bf5e6,Be6f7][%mdl 32]} Rhg8 $2 {[%emt 0:04:15] [#]} ({Black should play} 15... d5 $11) 16. f5 $1 $16 {[%emt 0:06:49][%mdl 512]} Qe5 {[%emt 0:02:35]} 17. g3 {[%emt 0:03:58]} h4 {[%emt 0:08:40] [#]} 18. Nd5 {[%emt 0:06:46]} Bf8 {[%emt 0:04:59] This costs Black the game.} (18... exd5 $2 {loses.} 19. exd5 Qxf5 20. dxc6 (20. Rxe7 Rd7 $18) 20... Bxc6 21. Rxe7 $18) (18... cxd5 $11 {and Black has nothing to worry.} 19. exd5 Qxf5 20. dxe6 Rg4) 19. Nf4 $36 {[%emt 0:19:30][%cal Rf5e6][%mdl 2048] White is in control.} hxg3 $2 {[%emt 0:10:46]} (19... Bh6 {keeps fighting.}) 20. fxe6 {[%emt 0:01:15]} Rg4 {[%emt 0:07:26]} (20... Bh6 $142) 21. hxg3 {[%emt 0:06:44]} Rxg3 {[%emt 0:01:22]} 22. exf7 {[%emt 0:01:24]} Bh6 {[%emt 0:01:12]} 23. Rf1 {[%emt 0:00:34]} Kb8 {[%emt 0:09:38]} (23... Rf8 $142 24. Be6+ (24. Qxd6 Qxd6 25. Rxd6 Bxf4 $18) 24... Kb8) 24. Qf2 {[%emt 0:02:41] White is clearly winning.} Bxf4 {[%emt 0:02:53]} 25. Qxf4 {[%emt 0:00:05]} Qxf4 {[%emt 0:00:44]} 26. Rxf4 {[%emt 0:00:04]} Rg6 {[%emt 0:00:58] [#]} 27. e5 $1 {[%emt 0:00:49][%mdl 512] Weighted Error Value: White=0.14 (very precise) /Black=0.63.  Mistake:       	White=1     	Black=5      Inaccurate:     	White=1     	Black=1      OK:         	White=9     	Black=5      Best:        	White=1     	Black=1      Brilliant:      	White=1     	---} 1-0

[Event "ESP-ch Teams Honor 2024"]
[Site "Melilla"]
[Date "2024.10.14"]
[Round "3.6"]
[White "Ambartsumova, Karina"]
[Black "Garrido Outon, Alex"]
[Result "1/2-1/2"]
[ECO "D35"]
[WhiteElo "2402"]
[BlackElo "2448"]
[Annotator "TA"]
[PlyCount "60"]
[EventDate "2024.10.11"]
[EventType "team-tourn"]
[EventCountry "ESP"]
[SourceTitle "playchess.com"]
[Source "ChessBase"]
[SourceQuality "1"]
[WhiteTeam "Sestao"]
[BlackTeam "Extremadura"]
[TimeControl "5400+30"]

{[%evp 12,60,36,34,48,22,23,28,37,26,38,34,27,12,30,9,30,31,48,25,58,0,0,0,29,12,15,0,18,4,26,5,27,0,17,0,53,0,0,0,47,-2,0,-2,38,31,116,19,17,13,57]} 1. d4 {[%emt 0:00:11]} d5 {[%emt 0:00:10]} 2. c4 {[%emt 0:00:31]} e6 {[%emt 0:00:08]} 3. Nc3 {[%emt 0:00:40]} Nf6 {[%emt 0:00:09]} 4. cxd5 {[%emt 0:00:31]} exd5 {[%emt 0:00:07]} 5. Bg5 {[%emt 0:00:40]} Be7 {[%emt 0:00:12]} 6. e3 {[%emt 0:01:03]} h6 {[%emt 0:00:14]} 7. Bh4 {[%emt 0:03:00]} Bg4 {[%emt 0:00:31] D35: Damegambiet Geweigerd: Ruilvariant.} 8. Nf3 {[%emt 0:06:18] Volgende Bxf6 is goed voor Wit. Onnauwkeurig} O-O {[%emt 0:00:31] OK} 9. Bd3 {[%emt 0:06:16] OK} Nbd7 {[%emt 0:01:18] Wit heeft hier iets.} 10. O-O {[%emt 0:04:26]} c6 {[%emt 0:00:16][%cal Of6e4]} 11. h3 {[%emt 0:03:40]} Bxf3 {[%emt 0:00:21] OK} 12. Qxf3 {[%emt 0:02:25]} Re8 {[%emt 0:00:18][%cal Of6e4]} 13. Bg3 {[%emt 0:02:30] OK} Nf8 {[%emt 0:00:59]} 14. Rab1 {[%emt 0:14:32]} Ne6 $146 {[%emt 0:11:02]} ({Predecessor:} 14... a5 15. a3 Ne6 16. Rfc1 Ng5 17. Qd1 Bd6 18. Bxd6 Qxd6 19. Na4 Nfe4 20. Bxe4 Nxe4 {½-½ Abasov,N (2632)-Fressinet,L (2652) FIDE World Cup 2023 (2.2)}) 15. Qd1 {[%emt 0:03:00]} Bd6 {[%emt 0:07:34] Onnauwkeurig} 16. Be5 {[%emt 0:06:20] Onnauwkeurig} Bxe5 {[%emt 0:05:05] Beste (Gemakkelijk)} 17. dxe5 {[%emt 0:00:15]} Nd7 {[%emt 0:00:06] Fantastisch paardenconcours. OK} 18. f4 {[%emt 0:01:17] OK} Qb6 {[%emt 0:12:55] OK} 19. Qd2 {[%emt 0:08:35]} d4 {[%emt 0:01:07]} 20. Na4 {[%emt 0:00:53] OK} Qd8 {[%emt 0:00:21] [#] met als doel voor ...b5. OK} 21. exd4 {[%emt 0:00:40] Bc2 is de sterke dreiging. OK} Nb6 $1 {[%emt 0:00:17] Sterk} 22. Nxb6 {[%emt 0:03:00] OK} Qxb6 {[%emt 0:10:04]} 23. Bc4 $36 {[%emt 0:03:04][%mdl 2048] Wit is actiever. OK} Nxd4 {[%emt 0:00:37] Fout (0.5)} (23... Qxd4+ $11 24. Qxd4 Nxd4) {Wit zou moeten proberen} 24. Qf2 {[%emt 0:01:28] Fout (0.5)} (24. Kh2 $1 $14) 24... Rad8 {[%emt 0:00:26]} 25. Rbd1 {[%emt 0:00:56]} c5 {[%emt 0:07:07] is het overwegen waard. Fout (0.5)} (25... Nc2 $11 26. Qxb6 axb6) 26. Rfe1 {[%emt 0:03:11] zou overwogen moeten worden. Fout (0.5)} (26. b3 $14) 26... Qb4 $11 {[%emt 0:08:12] OK} 27. Bf1 {[%emt 0:01:53]} Nc6 {[%emt 0:06:03] Onnauwkeurig} 28. a3 {[%emt 0:04:29] OK} {Beter is} Qb3 {[%emt 0:08:42] Fout (0.8)} (28... Qa4 $14 29. Rxd8 Rxd8) {Wit kan overwegen.} 29. Rxd8 {[%emt 0:02:56] Fout (1.0)} (29. Rc1 $16) 29... Rxd8 {[%emt 0:00:04]} 30. f5 {[%emt 0:00:23][%cal Oe5e6] OK} Rd1 {[%emt 0:01:41] Blunder waarde: Wit=0.17 (erg precies) /Zwart=0.21 (precies) . Onnauwkeurig.  Fout:        	Wit=3      	Zwart=3      Onnauwkeurig:    	Wit=2      	Zwart=3      OK:         	Wit=9      	Zwart=6      Beste:        	---       	Zwart=1      Sterk:        	---       	Zwart=1} 1/2-1/2

[Event "ESP-ch Teams Honor 2024"]
[Site "Melilla"]
[Date "2024.10.14"]
[Round "3.7"]
[White "Alekseenko, Kirill"]
[Black "Pranav, V."]
[Result "1-0"]
[ECO "C55"]
[WhiteElo "2679"]
[BlackElo "2609"]
[Annotator "TA"]
[PlyCount "89"]
[EventDate "2024.10.11"]
[EventType "team-tourn"]
[EventCountry "ESP"]
[SourceTitle "playchess.com"]
[Source "ChessBase"]
[SourceQuality "1"]
[WhiteTeam "Silla"]
[BlackTeam "Benalmadena"]
[TimeControl "5400+30"]

{[%evp 10,89,36,18,18,15,22,18,19,15,26,12,14,26,18,15,6,16,20,31,21,21,26,23,27,31,19,6,12,0,24,5,15,0,0,0,0,0,0,-13,0,0,0,-231,28,34,41,33,44,54,68,64,168,175,179,179,203,193,362,267,311,200,328,213,213,209,505,505,502,502,678,525,485,369,568,527,512,495,1028,1024,953,902]} 1. e4 {[%emt 0:00:13]} e5 {[%emt 0:00:22]} 2. Nf3 {[%emt 0:00:22]} Nc6 {[%emt 0:00:12]} 3. Bc4 {[%emt 0:00:26]} Nf6 {[%emt 0:00:08]} 4. d3 {[%emt 0:00:10]} Be7 {[%emt 0:00:09]} 5. O-O {[%emt 0:01:20]} O-O {[%emt 0:00:09]} 6. Bb3 {[%emt 0:00:41]} a5 {[%emt 0:00:49]} 7. Nc3 {[%emt 0:00:39]} d6 {[%emt 0:00:43]} 8. a4 {[%emt 0:00:12]} Be6 {[%emt 0:03:21] The position is equal.} 9. Nd5 {[%emt 0:01:24]} Bxd5 {[%emt 0:16:48]} 10. exd5 {[%emt 0:05:50]} Nb4 {[%emt 0:01:15]} 11. d4 {[%emt 0:00:33]} Nbxd5 {[%emt 0:04:35]} 12. dxe5 {[%emt 0:01:09]} dxe5 {[%emt 0:00:07]} 13. Nxe5 {[%emt 0:00:08]} c6 {[%emt 0:00:15]} 14. Qf3 {[%emt 0:14:09]} Qc7 {[%emt 0:02:49]} 15. Nc4 {[%emt 0:00:20]} Rfe8 {[%emt 0:00:25]} 16. Bd2 {[%emt 0:04:54]} Bb4 {[%emt 0:00:57]} 17. c3 {[%emt 0:00:31]} Bc5 {[%emt 0:03:13]} 18. Bc2 {[%emt 0:01:41]} Rad8 {[%emt 0:24:42]} (18... Nb6 {simplifies} 19. Nxb6 Qxb6 20. b3 Re6) 19. Bg5 {[%emt 0:05:05]} h6 {[%emt 0:05:09]} 20. Bh4 {[%emt 0:01:45]} Qf4 {[%emt 0:03:54]} 21. Qxf4 {[%emt 0:17:02]} (21. Nxa5 $2 Qxh4 22. g3 Qg4 23. Qxg4 Nxg4 $19) (21. Bxf6 {simplifies} Qxf3 22. gxf3 Nxf6 23. Nxa5 Rd2 24. Bd1) 21... Nxf4 {[%emt 0:00:06]} 22. Nxa5 {[%emt 0:00:38]} Rd2 {[%emt 0:00:54]} 23. Bd1 {[%emt 0:05:04][%cal Bc2d1,Bd1f3,Bf3c6,Bc6e8,Be8g6][%mdl 32]} g5 $1 {[%emt 0:01:27]} ({Reject} 23... Rxb2 $6 24. Nc4 Rbe2 25. Bxf6 gxf6 26. Bxe2 Nxe2+ 27. Kh1 Nxc3 28. Na5 $16) 24. b4 {[%emt 0:10:44]} Ba7 {[%emt 0:12:36]} (24... gxh4 {simplifies} 25. bxc5 h3 26. Nc4 hxg2 27. Nxd2 gxf1=R+ 28. Kxf1 Rd8) 25. Bg3 {[%emt 0:00:12]} Ne4 {[%emt 0:00:33]} 26. Nxb7 $2 {[%emt 0:05:17] [#]} (26. Bxf4 $11 gxf4 27. Nxb7) 26... Nd3 $2 {[%emt 0:04:43]} (26... Nxc3 27. Bf3 Nfe2+ 28. Kh1 $11) ({Black should play} 26... Nxg3 $1 $19 27. hxg3 Bxf2+ 28. Rxf2 Re1+ 29. Kh2 Rxf2 30. gxf4 gxf4) 27. Bf3 $11 {[%emt 0:04:37] aiming for Bxe4.} Nxc3 {[%emt 0:05:06] [#]} 28. b5 $1 {[%emt 0:12:09]} cxb5 {[%emt 0:06:23]} 29. axb5 {[%emt 0:00:03] Nd6 is the strong threat.} Nxb5 {[%emt 0:00:29][%cal Bc3b5,Bb5d4,Bd4e2][%mdl 32]} 30. Ra5 $1 {[%emt 0:01:58]} Rb2 {[%emt 0:02:31] Black is on the road to losing.} (30... f5 $1 $14) 31. Bc6 $1 $36 {[%emt 0:00:45][%csl LRb5,LRe8][%mdl 2048] White is really pushing.} Nd4 {[%emt 0:00:19]} 32. Bxe8 {[%emt 0:00:49] A strong pair of Bishops.} Rxb7 {[%emt 0:00:47]} 33. h3 {[%emt 0:02:13]} f5 $2 {[%emt 0:00:30]} (33... Ne2+ 34. Kh2 Kf8) 34. Bg6 {[%emt 0:02:10]} Bb6 {[%emt 0:00:29]} 35. Rb1 {[%emt 0:01:12] Hoping for Ra6.} Ne2+ {[%emt 0:00:26]} (35... Nf3+ $142 36. Kh1 Nd2) 36. Kf1 {[%emt 0:00:24]} Nc3 {[%emt 0:00:01]} 37. Rb3 {[%emt 0:01:21]} ({Stronger than} 37. Rxf5 Nxb1 38. Rd5 Nb4 $11) 37... Re7 $2 {[%emt 0:00:02]} (37... Ne4 {was worth a try.}) 38. Ra1 {[%emt 0:00:11]} (38. Rxb6 $2 Re1#) 38... Bd4 {[%emt 0:01:15]} 39. Bxf5 {[%emt 0:00:04]} Nc5 {[%emt 0:00:10]} 40. Rb8+ {[%emt 0:00:39]} Kg7 {[%emt 0:00:01]} 41. Re1 {[%emt 0:00:17]} Ra7 {[%emt 0:00:25]} (41... N5e4 $142 42. Bxe4 Nxe4) 42. Be5+ {[%emt 0:00:38] White is clearly winning.} Bxe5 {[%emt 0:00:01]} 43. Rxe5 {[%emt 0:00:04]} Kf6 {[%emt 0:00:43]} (43... Ra1+ $142 44. Re1 Rxe1+ 45. Kxe1 N3e4 46. Bxe4 Nxe4 47. Rb7+ Kg8) 44. Rxc5 {[%emt 0:00:18] Rb6+ would kill now.} Ra1+ {[%emt 0:00:03] [#]} 45. Bb1 $1 {[%emt 0:00:07] Weighted Error Value: White=0.31/Black=0.46.  Loses game:     	White=1     	---        Missed win:     	---       	Black=1      Mistake:       	---       	Black=6      Inaccurate:     	White=2     	Black=1      OK:         	White=15    	Black=12     Best:        	White=2     	Black=2      Strong:       	White=1     	Black=1} 1-0